bitfinex/quotes_ETHUSD_20240730
["timestamp","ask_amount","ask_price","bid_price","bid_amount"]
[1722353999940,3.01005,3322.2,3321.4,3.08801025]
[1722354000286,3.01036,3321.9,3321.4,0.07726025]
[1722354000580,3.01036,3321.9,3321.2,3.01092]
[1722354000730,3.01036,3321.9,3321.5,0.07727929]
[1722354000928,3.01036,3321.9,3321.2,3.01092]
[1722354001242,3.01036,3321.9,3321.3,0.07737855]
[1722354001243,3.01033,3321.9,3321.3,0.07737855]
[1722354001972,3.01021,3322.1,3321.3,3.08823855]
[1722354002124,3.0098,3322.5,3321.7,3.01044]
[1722354002125,3.00984,3322.5,3321.7,3.01044]
[1722354002325,5.41928,3322.9,3322.1,3.0101]
[1722354002566,3.00934,3323.0,3322.2,0.06019584]
[1722354002768,3.00942,3322.9,3322.2,0.13722017]
[1722354002985,3.00934,3323.0,3322.2,0.07702433]
[1722354002986,3.611214,3323.0,3322.2,0.07702433]
[1722354003189,3.00983,3322.5,3321.8,2.3597]
[1722354003387,3.00965,3322.7,3321.8,2.3597]
[1722354003388,3.00969,3322.6,3322.3,0.07690131]
[1722354003586,3.00979,3322.5,3321.8,5.37006]
[1722354003756,0.601854,3323.0,3321.8,5.37006]
[1722354003757,3.00988,3322.4,3321.8,2.3597]
[1722354004499,3.0097,3322.6,3321.8,5.37009]
[1722354004662,0.55,3322.5,3321.9,3.01032]
[1722354004998,3.00976,3322.6,3322.0,0.537002]
[1722354005179,0.55,3322.5,3321.8,5.37006]
[1722354005352,0.55,3322.5,3321.9,3.01031]
[1722354005706,3.00996,3322.3,3321.8,2.3597]
[1722354006051,3.00987,3322.4,3321.8,2.3597]
[1722354006492,3.01002,3322.3,3321.8,2.3597]
[1722354007153,3.56011,3322.2,3321.4,5.30586]
[1722354007491,3.56011,3322.2,3321.5,3.01063]
[1722354007492,0.55,3322.2,3321.5,3.01063]
[1722354007699,0.55,3322.3,3321.6,3.01057]
[1722354007879,3.55998,3322.3,3321.6,3.01057]
[1722354008053,3.01006,3322.2,3321.5,3.01068]
[1722354008251,3.01006,3322.2,3321.5,3.842341]
[1722354008454,0.55,3322.3,3321.5,3.842281]
[1722354008694,0.55,3322.3,3321.6,3.01054]
[1722354008897,3.00956,3322.8,3321.8,3.01035]
[1722354009056,3.55963,3322.7,3322.0,5.33602]
[1722354009399,3.55963,3322.7,3322.0,2.3258]
[1722354009400,3.00978,3322.5,3322.0,2.3258]
[1722354009585,3.55963,3322.7,3322.0,2.3258]
[1722354009586,0.55,3322.7,3322.0,2.3258]
[1722354009792,3.00964,3322.7,3322.0,5.33598]
[1722354010098,3.5597,3322.6,3322.0,2.3258]
[1722354010266,3.00978,3322.5,3322.0,2.3258]
[1722354011001,3.00997,3322.3,3321.8,35.0]
[1722354011183,6.56981,3322.4,3321.7,2.295]
[1722354011370,3.55988,3322.4,3321.7,2.295]
[1722354012558,3.01001,3322.3,3321.7,2.295]
[1722354013308,3.01006,3322.2,3321.7,2.295]
[1722354013965,3.00998,3322.3,3321.7,2.295]
[1722354014169,3.55988,3322.4,3321.7,2.295]
[1722354014170,0.55,3322.4,3321.7,8.35451288]
[1722354014386,3.00974,3322.6,3321.9,3.01032]
[1722354015098,3.00983,3322.5,3321.8,3.07060224]
[1722354015700,3.00983,3322.5,3321.8,6.08096224]
[1722354015999,3.00987,3322.4,3321.7,8.35450288]
[1722354016197,3.00954,3322.8,3321.7,2.295]
[1722354016365,3.00993,3322.4,3321.7,2.295]
[1722354016692,3.00993,3322.4,3321.8,0.07704753]
[1722354016893,3.00998,3322.3,3321.8,0.07704753]
[1722354017094,6.02,3322.3,3321.8,0.07704753]
[1722354017295,3.00998,3322.3,3321.7,2.295]
[1722354017497,3.01014,3322.1,3321.9,0.07695056]
[1722354017696,3.01014,3322.1,3321.8,0.07700018]
[1722354017945,3.01014,3322.1,3322.0,0.07690095]
[1722354017946,9.632532,3322.1,3322.0,0.07690095]
[1722354018150,11.47109,3322.0,3321.9,0.07444802]
[1722354018444,11.47109,3322.0,3320.5,3.01158]
[1722354018445,3.01074,3321.5,3320.5,3.01158]
[1722354018643,3.01096,3321.2,3320.5,3.01158]
[1722354018850,3.01096,3321.2,3320.6,0.07512001]
[1722354019138,0.55,3321.1,3320.4,5.30394]
[1722354019298,3.56105,3321.1,3320.7,0.07507036]
[1722354019500,3.56105,3321.1,3320.4,5.30394]
[1722354019700,0.55,3321.1,3320.8,0.07502071]
[1722354019901,0.55,3321.1,3320.5,0.530394]
[1722354020146,0.55,3321.1,3320.9,0.07514338]
[1722354020298,0.55,3321.2,3320.6,0.06022419]
[1722354020502,0.55,3321.2,3321.0,0.07509374]
[1722354020806,0.55,3321.2,3320.5,3.541974]
[1722354021002,0.55,3321.2,3321.1,0.0750441]
[1722354021311,0.55,3321.2,3320.6,0.5834274]
[1722354021312,3.561,3321.2,3320.6,0.5834274]
[1722354021516,3.561,3321.2,3321.1,0.0750441]
[1722354021742,3.01105,3321.1,3320.4,2.2923]
[1722354021944,3.01105,3321.1,3320.5,0.07541754]
[1722354022759,2.93961744,3321.1,3320.5,0.07541754]
[1722354023177,3.01114,3321.0,3320.5,0.07541754]
[1722354023474,3.01105,3321.1,3320.5,0.61336629]
[1722354024273,6.02218,3321.1,3320.5,0.61336629]
[1722354024980,3.01105,3321.1,3320.5,0.61336629]
[1722354025483,3.01052,3321.7,3320.8,3.01126]
[1722354025779,2.393,3321.9,3320.9,0.07524255]
[1722354025780,3.01075,3321.5,3320.9,0.07524255]
[1722354026139,3.01087,3321.3,3320.6,3.01148]
[1722354026361,3.01075,3321.5,3320.7,3.08670185]
[1722354027076,3.01075,3321.5,3320.7,0.07534185]
[1722354027292,3.01087,3321.3,3320.7,0.43782091]
[1722354027442,3.0111,3321.1,3320.5,0.53794875]
[1722354027637,3.0111,3321.1,3320.8,0.0752922]
[1722354027858,3.0111,3321.1,3320.5,0.53794875]
[1722354028044,6.02185,3321.3,3320.9,0.07524255]
[1722354028284,0.55,3321.2,3320.5,0.5981734]
[1722354028602,0.55,3321.2,3320.6,3.60165834]
[1722354028887,0.55,3321.4,3320.7,3.01134]
[1722354029038,3.01065,3321.6,3320.9,3.0112]
[1722354029243,0.55,3321.5,3321.0,2.3519]
[1722354029497,3.56059,3321.6,3321.0,2.42734314]
[1722354029798,3.0107,3321.5,3321.0,2.42734314]
[1722354030091,10.48051,3321.7,3321.0,2.42734314]
[1722354030269,7.47,3321.7,3321.0,2.3519]
[1722354030470,3.0107,3321.5,3321.1,0.0753935]
[1722354031047,3.0107,3321.5,3321.0,37.3519]
[1722354031640,3.0107,3321.5,3321.1,0.0753935]
[1722354032020,3.0107,3321.5,3321.1,0.10636868]
[1722354032144,3.0107,3321.5,3320.8,3.01128]
[1722354032342,10.48054,3321.7,3320.9,38.72000441]
[1722354032562,3.01065,3321.6,3320.9,38.72000441]
[1722354032925,3.01073,3321.5,3320.9,35.70878441]
[1722354033094,3.01059,3321.6,3320.9,35.70878441]
[1722354033395,3.01059,3321.6,3321.0,3.04901288]
[1722354033554,3.01059,3321.6,3321.0,3.15548272]
[1722354033753,3.01059,3321.6,3321.0,0.10646984]
[1722354034161,3.01048,3321.8,3321.0,3.17774483]
[1722354034362,0.55,3321.7,3321.0,0.16668483]
[1722354034568,0.55,3321.7,3321.0,0.10646984]
[1722354034771,0.55,3321.7,3321.1,3.44323935]
[1722354034960,0.55,3321.7,3321.2,0.10636869]
[1722354034961,3.56055,3321.7,3321.2,0.10636869]
[1722354035493,0.55,3321.7,3321.2,0.10636869]
[1722354035695,3.56057,3321.7,3321.2,0.10636869]
[1722354036061,3.56051,3321.7,3321.2,0.10636869]
[1722354036251,3.56051,3321.7,3321.1,0.06021497]
[1722354036446,0.55,3321.7,3321.3,0.10631812]
[1722354036647,3.56051,3321.7,3321.2,0.41350319]
[1722354036853,0.55,3321.7,3321.4,0.10626756]
[1722354037068,3.56041,3321.8,3321.3,0.10631812]
[1722354037261,0.55,3321.8,3321.2,3.3180845]
[1722354037466,3.00992,3322.4,3321.7,3.01047]
[1722354037715,3.00975,3322.6,3321.9,2.4215]
[1722354037986,5.50437,3322.8,3322.0,0.10596423]
[1722354037987,3.00978,3322.5,3322.0,0.10596423]
[1722354038547,3.00991,3322.4,3322.0,0.10596423]
[1722354038751,3.00979,3322.5,3322.0,0.35871065]
[1722354039375,3.00987,3322.4,3322.0,0.35871065]
[1722354039597,3.56001,3322.3,3322.0,0.10596423]
[1722354039790,3.56001,3322.3,3321.6,5.49033]
[1722354039965,0.55,3322.3,3322.1,0.10568705]
[1722354040300,2.4948,3322.8,3321.7,3.01049]
[1722354040301,3.55989,3322.4,3321.7,3.01049]
[1722354040598,3.55989,3322.4,3321.7,3.860572]
[1722354040789,3.55989,3322.4,3321.8,0.10583869]
[1722354042352,3.00974,3322.6,3321.9,0.06020436]
[1722354042697,3.55979,3322.5,3322.0,0.1057376]
[1722354043088,3.55979,3322.5,3321.7,6.870962]
[1722354043285,0.55,3322.5,3322.1,0.10568705]
[1722354043489,3.5597,3322.6,3321.8,0.9350762]
[1722354043806,0.55,3322.6,3321.9,0.06019932]
[1722354043988,0.55,3322.6,3322.0,3.01023]
[1722354044307,3.00978,3322.5,3322.1,0.31759436]
[1722354044604,3.00997,3322.3,3322.2,0.10536266]
[1722354044777,3.00992,3322.4,3321.6,2.4798]
[1722354044965,3.56,3322.3,3321.7,0.10561067]
[1722354045302,3.01009,3322.2,3321.7,0.10561067]
[1722354045703,3.0103,3322.0,3321.7,0.10561067]
[1722354045864,3.01009,3322.2,3321.2,2.3818]
[1722354045865,3.01041,3321.8,3321.2,2.3818]
[1722354046594,3.01036,3321.9,3321.3,0.10581292]
[1722354046808,3.01058,3321.7,3320.8,3.01132]
[1722354047023,3.01058,3321.7,3321.4,0.10576235]
[1722354047306,3.01059,3321.6,3320.8,0.301132]
[1722354047477,3.01059,3321.6,3321.5,0.10571179]
[1722354047668,3.01057,3321.7,3320.6,3.01145]
[1722354047669,3.01071,3321.5,3320.6,3.01145]
[1722354047866,3.01071,3321.5,3320.6,3.550765]
[1722354048078,3.01071,3321.5,3320.6,3.550755]
[1722354048569,3.56082,3321.4,3320.6,3.550795]
[1722354048782,3.01087,3321.3,3320.6,3.550795]
[1722354049190,3.01087,3321.3,3320.7,0.5932595]
[1722354050392,0.55,3321.4,3320.7,0.5932595]
[1722354050909,3.56079,3321.4,3320.7,0.5932595]
[1722354051106,3.01091,3321.3,3320.5,2.3818]
[1722354051272,3.01096,3321.2,3320.5,5.39339]
[1722354051473,3.56079,3321.4,3320.6,3.01149]
[1722354051812,3.56079,3321.4,3320.6,6.02298]
[1722354052115,0.55,3321.4,3320.7,3.851838]
[1722354052410,3.01087,3321.3,3320.7,0.840478]
[1722354052588,3.01087,3321.3,3320.6,3.01145]
[1722354054108,3.56078,3321.4,3320.6,3.01145]
[1722354054522,3.56078,3321.4,3320.7,3.01141]
[1722354054684,3.56078,3321.4,3320.8,3.312461]
[1722354054889,3.56078,3321.4,3320.8,35.301141]
[1722354055222,3.01087,3321.3,3320.8,35.301141]
[1722354056316,3.01101,3321.2,3320.8,35.301141]
[1722354056538,3.01105,3321.1,3320.5,2.3818]
[1722354056808,3.01104,3321.2,3320.5,2.3818]
[1722354057016,3.01114,3321.0,3320.6,35.0]
[1722354057219,3.01114,3321.0,3320.5,2.3818]
[1722354057220,0.55,3321.1,3320.5,2.3818]
[1722354057389,3.56105,3321.1,3320.5,2.921148]
[1722354057589,3.01093,3321.3,3320.6,3.01145]
[1722354058179,3.01093,3321.3,3320.5,40.932738]
[1722354058415,3.01093,3321.3,3320.5,37.921148]
[1722354058618,3.01114,3321.0,3320.5,37.921148]
[1722354058923,0.55,3321.2,3320.5,37.921148]
[1722354058924,3.0111,3321.1,3320.6,3.04901288]
[1722354059302,3.01115,3321.0,3320.6,3.04901288]
[1722354060316,0.55,3321.2,3320.6,3.04901288]
[1722354060514,3.01101,3321.2,3320.6,3.04901288]
[1722354060819,3.56087,3321.3,3320.7,2.02851442]
[1722354061177,3.011,3321.2,3320.5,2.3818]
[1722354061378,3.011,3321.2,3320.6,35.0]
[1722354061604,3.01106,3321.1,3320.7,0.1065602]
[1722354061816,3.01096,3321.2,3320.7,0.1065602]
[1722354062004,3.01096,3321.2,3320.7,3.15557308]
[1722354062488,0.55,3321.3,3320.7,3.15557308]
[1722354062689,3.01096,3321.2,3320.7,3.15557308]
[1722354063404,3.01084,3321.4,3320.7,3.15557308]
[1722354063579,3.56087,3321.3,3320.7,3.15557308]
[1722354063777,0.55,3321.3,3320.7,6.16697308]
[1722354063979,0.55,3321.3,3320.7,3.1179602]
[1722354064216,3.01088,3321.3,3320.7,0.1065602]
[1722354064484,3.01074,3321.5,3320.7,6.18952081]
[1722354064722,0.55,3321.4,3320.7,3.17812081]
[1722354064880,0.55,3321.4,3320.8,0.06022007]
[1722354065076,3.01065,3321.6,3320.9,3.01122]
[1722354065315,0.55,3321.5,3320.9,3.01122]
[1722354065527,0.55,3321.5,3321.0,0.10647693]
[1722354065883,3.01087,3321.3,3321.0,0.10647693]
[1722354066192,3.01097,3321.2,3321.1,0.10642635]
[1722354066694,3.01097,3321.2,3320.7,35.0]
[1722354066896,3.01087,3321.3,3321.1,0.10642635]
[1722354067106,3.01078,3321.4,3320.7,3.01141]
[1722354067424,3.01086,3321.3,3320.8,0.301141]
[1722354067581,3.01086,3321.3,3320.8,0.10657809]
[1722354067923,3.01086,3321.3,3320.7,3.01141]
[1722354068145,3.01086,3321.3,3320.9,0.10652751]
[1722354068306,3.01086,3321.3,3320.8,0.10657809]
[1722354068506,3.01086,3321.3,3321.0,0.10647693]
[1722354068701,3.01086,3321.3,3320.9,0.10652751]
[1722354068702,3.01087,3321.3,3320.9,0.10652751]
[1722354068907,3.01087,3321.3,3320.6,38.01149]
[1722354069132,3.01087,3321.3,3321.0,0.10647693]
[1722354069451,3.56075,3321.5,3321.1,0.10642635]
[1722354069625,0.55,3321.4,3321.1,0.10642635]
[1722354069938,0.55,3321.4,3320.8,3.0715295]
[1722354070123,0.55,3321.4,3321.2,0.10637578]
[1722354070332,0.55,3321.4,3320.8,3.01131]
[1722354070503,0.55,3321.4,3321.3,0.10632521]
[1722354070706,0.55,3321.4,3320.8,3.01127]
[1722354070934,3.56078,3321.4,3320.9,0.301127]
[1722354071104,0.55,3321.4,3320.9,0.10652751]
[1722354071539,0.55,3321.4,3320.8,3.07147947]
[1722354071716,0.55,3321.4,3321.0,0.10647693]
[1722354071910,3.56069,3321.5,3320.9,0.10652751]
[1722354072123,3.56069,3321.5,3321.1,0.10642635]
[1722354072334,3.56069,3321.5,3321.0,0.10647693]
[1722354072646,3.56069,3321.5,3321.1,0.10642635]
[1722354072846,3.56069,3321.5,3320.8,3.07149945]
[1722354073004,3.56069,3321.5,3321.2,0.10637578]
[1722354073208,3.56069,3321.5,3320.8,3.67977239]
[1722354073423,0.55,3321.5,3321.3,0.10632521]
[1722354073634,0.55,3321.5,3320.9,3.01122]
[1722354073813,0.55,3321.5,3321.4,0.10627465]
[1722354074022,0.55,3321.5,3320.9,3.01122]
[1722354074288,0.55,3321.5,3321.4,0.10627465]
[1722354074410,0.55,3321.5,3320.9,3.01122]
[1722354074754,0.55,3321.5,3321.4,0.10627465]
[1722354074924,0.55,3321.5,3320.9,3.01122]
[1722354075306,2.3637,3322.0,3320.9,3.01122]
[1722354075307,9.7641,3322.3,3321.2,2.4578]
[1722354075505,3.01009,3322.2,3321.4,3.01072]
[1722354075749,7.47,3322.3,3321.6,3.01059]
[1722354075750,10.48,3322.3,3321.6,3.01059]
[1722354075951,7.47,3322.3,3321.5,3.17701795]
[1722354076132,3.0102,3322.1,3321.7,0.10608047]
[1722354076455,3.01018,3322.1,3321.8,0.10602992]
[1722354076749,10.48001,3322.3,3321.5,3.01065]
[1722354077050,10.48001,3322.3,3321.6,0.602134]
[1722354077051,7.47,3322.3,3321.6,0.602134]
[1722354077353,3.01029,3322.0,3321.6,0.10613103]
[1722354077651,3.01029,3322.0,3321.3,35.24578]
[1722354077858,3.01029,3322.0,3321.7,0.10608047]
[1722354078079,3.01041,3321.8,3321.3,35.0]
[1722354078744,3.56032,3321.9,3321.3,35.0]
[1722354078956,3.01042,3321.8,3321.3,35.0]
[1722354079357,3.01023,3322.0,3321.3,38.01084]
[1722354079560,3.01023,3322.0,3321.4,3.04901288]
[1722354080174,3.01052,3321.7,3321.4,3.04901288]
[1722354080474,3.01052,3321.7,3321.2,2.4578]
[1722354080635,3.01061,3321.6,3321.0,35.0]
[1722354081534,3.01064,3321.6,3321.0,35.0]
[1722354081733,3.01069,3321.5,3320.9,2.4896]
[1722354082032,3.01069,3321.5,3320.9,3.039686]
[1722354082250,3.01069,3321.5,3320.9,38.039686]
[1722354082435,3.01074,3321.5,3320.6,3.0]
[1722354082633,3.01092,3321.3,3320.6,6.01145]
[1722354082834,3.01092,3321.3,3320.6,41.01145]
[1722354083072,3.01092,3321.3,3320.7,3.04901288]
[1722354084148,3.011,3321.2,3320.7,3.04901288]
[1722354084644,3.011,3321.2,3320.5,12.74315]
[1722354084966,3.01105,3321.1,3320.5,47.74315]
[1722354085176,3.01105,3321.1,3320.5,2.3616]
[1722354085342,3.01119,3321.0,3320.2,5.4902]
[1722354085534,3.01119,3321.0,3320.3,4.12648]
[1722354085753,3.01119,3321.0,3320.4,35.0]
[1722354087337,3.01105,3321.1,3320.4,35.0]
[1722354087551,3.01105,3321.1,3320.4,38.01167]
[1722354087937,3.01114,3321.0,3320.4,38.01167]
[1722354088139,3.01114,3321.0,3320.5,3.04901288]
[1722354088755,3.01102,3321.2,3320.5,3.04901288]
[1722354088957,0.55,3321.1,3320.4,3.01163]
[1722354089170,3.56109,3321.1,3320.5,35.0]
[1722354089367,6.02238,3321.0,3320.5,35.0]
[1722354089572,3.01115,3321.0,3320.5,35.0]
[1722354090094,3.01124,3320.9,3320.5,35.0]
[1722354090850,0.55,3321.1,3320.5,35.0]
[1722354091076,3.01119,3321.0,3320.5,35.0]
[1722354091546,3.01123,3320.9,3320.6,0.10664856]
[1722354091754,6.02282,3320.7,3320.6,0.10664856]
[1722354092319,3.01163,3320.5,3319.9,35.0]
[1722354092589,3.01163,3320.5,3319.9,38.01213]
[1722354092792,3.01151,3320.6,3320.0,0.10701119]
[1722354093012,3.01151,3320.6,3320.0,3.11904119]
[1722354093228,3.01151,3320.6,3320.1,3.04901288]
[1722354093446,3.01151,3320.6,3320.1,3.15597346]
[1722354093962,3.01146,3320.7,3320.1,3.15597346]
[1722354094630,3.01146,3320.7,3320.1,3.21620619]
[1722354094830,3.01146,3320.7,3320.2,0.62281862]
[1722354095017,3.01146,3320.7,3320.2,0.7297286]
[1722354095522,3.01115,3321.0,3320.3,5.42259273]
[1722354095723,10.48093,3321.3,3320.7,3.0114]
[1722354096034,10.48093,3321.3,3320.4,0.0602251]
[1722354096035,3.01098,3321.2,3320.5,3.01159]
[1722354096344,3.01098,3321.2,3320.8,0.10660643]
[1722354096502,3.01052,3321.7,3320.9,3.01121]
[1722354096503,3.01056,3321.7,3320.9,3.01121]
[1722354096703,3.01038,3321.9,3321.0,2.3421]
[1722354096914,3.01049,3321.8,3321.1,0.06021238]
[1722354097250,3.01049,3321.8,3321.1,0.85311077]
[1722354097549,3.0105,3321.7,3321.2,0.10646555]
[1722354098419,3.01059,3321.6,3321.2,0.10646555]
[1722354099147,3.01045,3321.8,3321.2,0.16667795]
[1722354099348,3.01051,3321.7,3321.2,0.16667795]
[1722354099553,3.01051,3321.7,3321.2,0.74376642]
[1722354099750,3.01055,3321.7,3321.2,0.74376642]
[1722354099956,3.01074,3321.5,3321.2,0.10646555]
[1722354100316,3.01074,3321.5,3321.0,2.3421]
[1722354100850,3.01074,3321.5,3321.1,0.10643818]
[1722354101153,6.02114,3321.7,3321.1,0.10643818]
[1722354101461,2.4434,3322.1,3321.1,0.10643818]
[1722354101462,3.01041,3321.8,3321.2,0.30506624]
[1722354101631,6.02089,3321.8,3321.2,0.24485382]
[1722354101948,3.01041,3321.8,3321.3,0.10633704]
[1722354102316,3.01041,3321.8,3321.2,0.30506611]
[1722354102317,3.01052,3321.7,3321.2,0.30506611]
[1722354102516,3.01052,3321.7,3321.4,0.10628648]
[1722354102812,3.0106,3321.6,3321.5,0.10623592]
[1722354103258,3.0106,3321.6,3321.1,0.06021244]
[1722354103417,3.0106,3321.6,3321.5,0.10623592]
[1722354103618,3.0106,3321.6,3321.1,0.06021244]
[1722354104017,3.0106,3321.6,3321.2,0.10638761]
[1722354105348,3.01041,3321.8,3321.2,0.10638761]
[1722354105556,6.02091,3321.8,3321.2,0.10638761]
[1722354105745,6.02061,3322.0,3321.2,0.65837061]
[1722354106055,3.56037,3321.9,3321.2,3.66926061]
[1722354106390,3.0102,3322.1,3321.4,3.01077]
[1722354106680,3.01024,3322.0,3321.5,0.10256812]
[1722354107033,3.01034,3321.9,3321.5,0.10256812]
[1722354107638,3.56015,3322.1,3321.5,0.10256812]
[1722354108269,3.56015,3322.1,3321.3,3.01086]
[1722354108478,3.01015,3322.1,3321.6,0.10251756]
[1722354108673,10.48009,3322.2,3321.3,0.30710679]
[1722354108889,10.48009,3322.2,3321.7,0.102467]
[1722354109092,7.47,3322.2,3321.7,2.3591]
[1722354109298,7.47,3322.2,3321.8,0.10241645]
[1722354109586,7.47,3322.2,3321.7,2.3591]
[1722354109587,10.48013,3322.2,3321.7,2.3591]
[1722354109813,10.48013,3322.2,3321.9,0.1023659]
[1722354109963,10.48013,3322.2,3321.8,0.10241645]
[1722354110311,10.48013,3322.2,3321.9,0.10151685]
[1722354110443,10.48013,3322.2,3321.7,2.3591]
[1722354110646,3.01014,3322.1,3322.0,0.10146631]
[1722354110847,3.01014,3322.1,3321.7,2.3591]
[1722354111287,10.48005,3322.2,3321.7,2.3591]
[1722354111492,7.47,3322.2,3321.8,0.1015674]
[1722354111696,7.47,3322.2,3321.7,2.4193036]
[1722354111899,7.47,3322.2,3321.9,0.10151685]
[1722354111900,10.48005,3322.2,3321.9,0.10151685]
[1722354112050,10.48005,3322.2,3321.7,2.4193036]
[1722354112283,10.48005,3322.2,3322.0,0.10146631]
[1722354112487,10.48005,3322.2,3321.7,2.4193036]
[1722354112690,10.48005,3322.2,3322.1,0.10141576]
[1722354112894,10.48005,3322.2,3321.7,2.4193036]
[1722354113449,13.49018,3322.2,3321.8,0.1015674]
[1722354113799,10.48005,3322.2,3321.7,2.4193036]
[1722354113944,10.48005,3322.2,3321.9,0.10151685]
[1722354114283,3.01016,3322.1,3322.0,0.10146631]
[1722354114662,3.01025,3322.0,3321.3,40.43651]
[1722354115187,3.01015,3322.1,3321.4,3.01072]
[1722354115906,3.01015,3322.1,3321.3,43.48552288]
[1722354115907,3.01025,3322.0,3321.3,40.47471288]
[1722354116061,3.01025,3322.0,3321.3,43.48552288]
[1722354116261,3.01025,3322.0,3321.3,46.49631288]
[1722354116466,3.01024,3322.0,3321.3,43.48557288]
[1722354116901,3.01024,3322.0,3321.3,46.49637288]
[1722354117078,3.01024,3322.0,3321.4,1.95951891]
[1722354117287,2.4019,3322.2,3321.3,2.4257]
[1722354117583,2.99752421,3321.8,3321.3,2.4257]
[1722354117740,3.01053,3321.7,3321.4,0.10149343]
[1722354117943,3.01042,3321.8,3321.4,0.10149343]
[1722354118306,3.01034,3321.9,3321.4,0.10149343]
[1722354118889,3.01055,3321.7,3321.4,0.10149343]
[1722354119390,3.01061,3321.6,3321.0,5.50033]
[1722354119591,3.01051,3321.7,3321.5,0.10144287]
[1722354119743,3.01051,3321.7,3321.1,0.850033]
[1722354119946,3.01051,3321.7,3321.6,0.10139231]
[1722354120194,3.01064,3321.6,3321.0,2.4892]
[1722354120350,3.01064,3321.6,3321.0,3.90607]
[1722354120552,3.01042,3321.8,3321.2,3.01095]
[1722354120789,3.0105,3321.7,3321.0,6.91716]
[1722354121102,3.0105,3321.7,3321.0,6.91715]
[1722354121641,3.0105,3321.7,3321.1,3.11267514]
[1722354121842,0.55,3322.1,3321.2,1.06319419]
[1722354122043,3.01018,3322.1,3321.3,3.17261872]
[1722354122276,3.01006,3322.2,3321.4,3.01073]
[1722354122499,3.0101,3322.2,3321.5,3.07082368]
[1722354122782,3.00987,3322.4,3321.7,3.0105]
[1722354122999,7.47,3322.6,3321.8,0.06020364]
[1722354123295,3.00987,3322.4,3321.8,0.06020364]
[1722354123497,3.00978,3322.5,3321.8,3.07061364]
[1722354123779,3.00978,3322.5,3321.9,0.10125245]
[1722354124250,2.407,3322.9,3321.9,0.10125245]
[1722354124452,3.01023,3322.0,3321.9,0.10125245]
[1722354124647,3.01044,3321.8,3321.2,2.4292]
[1722354125085,3.01051,3321.7,3321.3,0.10151331]
[1722354125284,3.01064,3321.6,3321.3,0.10151331]
[1722354125580,3.01064,3321.6,3321.4,0.10146275]
[1722354125949,3.01064,3321.6,3320.9,5.44038]
[1722354126148,3.01064,3321.6,3321.5,0.10141218]
[1722354126458,3.0105,3321.7,3321.0,3.04901288]
[1722354126782,3.0105,3321.7,3321.5,0.10141218]
[1722354126990,3.0105,3321.7,3321.0,6.06014288]
[1722354127187,3.0105,3321.7,3321.6,0.10136163]
[1722354127348,3.0105,3321.7,3321.0,6.06014288]
[1722354127682,3.0105,3321.7,3321.6,0.10136163]
[1722354127879,3.0105,3321.7,3321.0,3.01113]
[1722354128046,3.0105,3321.7,3321.1,0.10161445]
[1722354128246,6.02105,3321.7,3321.6,0.10136163]
[1722354128448,6.02105,3321.7,3320.9,2.4292]
[1722354128449,3.01065,3321.6,3320.9,2.4292]
[1722354128682,3.00997,3322.3,3321.5,3.01062]
[1722354128888,3.00997,3322.3,3321.4,3.01069]
[1722354128889,3.01015,3322.1,3321.4,3.01069]
[1722354129779,3.01015,3322.1,3321.4,6.0214]
[1722354129978,3.01005,3322.2,3321.5,0.06020427]
[1722354130297,3.01018,3322.1,3321.5,0.6032337]
[1722354130448,3.01018,3322.1,3321.5,0.06020427]
[1722354130648,3.01018,3322.1,3321.4,3.01069]
[1722354130851,3.01002,3322.3,3321.5,3.547639]
[1722354131051,3.0101,3322.2,3321.5,0.537009]
[1722354131277,3.0101,3322.2,3321.3,2.3594]
[1722354131481,3.01027,3322.0,3321.3,5.37025]
[1722354131688,3.01014,3322.1,3321.5,3.01067]
[1722354131905,3.01023,3322.0,3321.3,2.3594]
[1722354132403,3.01023,3322.0,3321.3,5.37026]
[1722354132604,3.01023,3322.0,3321.4,3.01076]
[1722354132905,3.01018,3322.1,3321.4,3.01077]
[1722354133215,3.01027,3322.0,3321.3,5.37026]
[1722354133416,3.01027,3322.0,3321.4,1.103816]
[1722354134303,3.01006,3322.2,3321.5,3.07086451]
[1722354134562,0.541203,3322.6,3321.4,1.103816]
[1722354134691,2.4024,3322.7,3321.3,5.37022]
[1722354134692,3.01028,3322.0,3321.3,5.37022]
[1722354135512,3.01028,3322.0,3321.4,3.01074]
[1722354135670,3.00992,3322.4,3321.5,0.0602045]
[1722354135871,3.01015,3322.1,3321.5,3.0708845]
[1722354136088,3.01015,3322.1,3321.5,0.54302845]
[1722354136293,3.01024,3322.0,3321.5,0.54302845]
[1722354136809,3.01019,3322.1,3321.6,0.10143714]
[1722354137311,3.01019,3322.1,3321.4,3.01075]
[1722354137509,3.01019,3322.1,3321.7,0.10138658]
[1722354137876,3.01019,3322.1,3321.6,0.06020432]
[1722354138079,3.01019,3322.1,3321.7,0.10138658]
[1722354138492,3.01003,3322.3,3321.7,0.10138658]
[1722354138917,3.01006,3322.2,3321.7,0.10138658]
[1722354139212,3.01031,3322.0,3321.7,0.10138658]
[1722354139412,3.55985,3322.5,3321.7,0.10138658]
[1722354139583,3.01025,3322.0,3321.3,5.37022]
[1722354139784,3.01025,3322.0,3321.8,0.10132659]
[1722354140008,3.01017,3322.1,3321.3,2.3594]
[1722354140214,3.01017,3322.1,3320.4,35.0]
[1722354140215,6.02046,3322.0,3321.9,0.10116981]
[1722354140420,6.02046,3322.0,3320.9,5.45202]
[1722354140421,3.01063,3321.6,3320.9,5.45202]
[1722354140785,6.0213,3321.6,3321.0,0.10162487]
[1722354140981,3.0107,3321.5,3321.0,0.10162487]